bitfinex/quotes_SOLUSD_20250413
["timestamp","ask_amount","ask_price","bid_price","bid_amount"]
[1744525690846,0.03,129.76,129.72,33.36]
[1744525691043,0.03,129.76,129.73,13.96415495]
[1744525691250,0.03,129.76,129.74,7.7077]
[1744525691731,0.03,129.76,129.73,7.7081]
[1744525692555,13.96415495,129.75,129.72,41.0687]
[1744525693256,13.99415495,129.76,129.72,41.0687]
[1744525693569,13.99415495,129.76,129.68,21.32415495]
[1744525693570,13.96415495,129.73,129.68,21.32415495]
[1744525693742,13.96415495,129.7,129.65,21.67665495]
[1744525693943,13.96415495,129.66,129.62,7.36]
[1744525694243,81.0,129.72,129.62,7.36]
[1744525694244,13.96415495,129.65,129.62,7.36]
[1744525694862,13.96415495,129.66,129.62,7.36]
[1744525695063,13.96415495,129.66,129.62,15.0744]
[1744525695565,13.96415495,129.67,129.62,29.03855495]
[1744525696057,13.96415495,129.69,129.64,13.96415495]
[1744525696243,13.96415495,129.68,129.63,13.96415495]
[1744525696751,13.96415495,129.67,129.62,48.32565495]
[1744525697133,13.96415495,129.66,129.62,15.0744]
[1744525697330,13.96415495,129.65,129.62,15.0744]
[1744525697531,13.96415495,129.66,129.62,15.0744]
[1744525698855,13.96415495,129.65,129.62,15.0744]
[1744525699076,13.96415495,129.66,129.62,15.0744]
[1744525700758,13.96415495,129.64,129.6,7.7155]
[1744525702066,13.96415495,129.64,129.59,7.7166]
[1744525702558,13.96415495,129.64,129.59,21.68075495]
[1744525703151,1.5035,129.67,129.62,13.96415495]
[1744525703451,15.46765495,129.67,129.62,13.96415495]
[1744525704395,7.8938,129.7,129.64,13.96415495]
[1744525704667,13.96415495,129.7,129.65,13.96415495]
[1744525704858,13.96415495,129.69,129.64,13.96415495]
[1744525705058,13.96415495,129.66,129.63,7.7142]
[1744525705568,13.96415495,129.64,129.59,21.34415495]
[1744525705749,13.96415495,129.64,129.59,7.38]
[1744525705949,13.96415495,129.61,129.59,7.38]
[1744525706355,13.96415495,129.62,129.59,7.38]
[1744525707465,13.96415495,129.63,129.6,7.716]
[1744525708150,13.96415495,129.63,129.59,15.0964]
[1744525709072,13.96415495,129.62,129.59,7.38]
[1744525709481,13.96415495,129.61,129.59,7.38]
[1744525709656,13.96415495,129.6,129.59,7.38]
[1744525709858,13.96415495,129.6,129.57,7.7176]
[1744525710170,13.96415495,129.58,129.56,0.063]
[1744525710354,13.96415495,129.57,129.56,0.063]
[1744525711157,13.96415495,129.58,129.56,0.063]
[1744525711356,13.96415495,129.59,129.56,0.063]
[1744525713391,94.96415495,129.61,129.56,14.02715495]
[1744525713678,13.96415495,129.6,129.56,0.063]
[1744525713886,7.7142,129.63,129.56,0.063]
[1744525714177,13.96415495,129.6,129.56,0.063]
[1744525715763,13.96415495,129.59,129.56,0.063]
[1744525719401,13.96415495,129.57,129.56,0.063]
[1744525720361,6.4339,129.59,129.56,0.063]
[1744525720566,13.96415495,129.57,129.56,0.063]
[1744525721380,21.68195495,129.57,129.56,0.063]
[1744525724586,13.96415495,129.57,129.56,0.063]
[1744525724783,18.79181043,129.61,129.56,0.063]
[1744525724784,20.35731043,129.61,129.56,0.063]
[1744525724963,13.96415495,129.58,129.56,0.063]
[1744525725781,13.96415495,129.57,129.56,0.063]
[1744525726789,13.96415495,129.58,129.56,0.063]
[1744525728277,13.96415495,129.57,129.56,0.063]
[1744525728967,13.96415495,129.58,129.56,0.063]
[1744525729296,13.96415495,129.57,129.56,0.063]
[1744525735396,7.7167,129.59,129.56,0.063]
[1744525735600,13.96415495,129.57,129.56,0.063]
[1744525739300,8.94676004,129.57,129.56,0.063]
[1744525739595,81.0,129.62,129.56,9.00976004]
[1744525739783,8.94676004,129.63,129.58,7.7172]
[1744525739980,8.94676004,129.63,129.58,16.66396004]
[1744525740396,41.91422647,129.68,129.58,16.66396004]
[1744525740397,88.85426157,129.67,129.59,8.94676004]
[1744525740700,8.94676004,129.64,129.59,8.94676004]
[1744525741082,8.94676004,129.64,129.58,16.66396004]
[1744525741282,13.96502809,129.64,129.59,13.96502809]
[1744525741479,13.96502809,129.64,129.6,7.716]
[1744525741876,81.14216157,129.67,129.6,27.0061]
[1744525742092,13.96502809,129.65,129.6,40.97112809]
[1744525742292,13.96502809,129.66,129.61,13.96502809]
[1744525743702,13.96502809,129.66,129.62,7.7148]
[1744525744000,81.0,129.67,129.62,7.7148]
[1744525744204,13.96502809,129.66,129.62,7.7148]
[1744525744496,81.0,129.67,129.62,7.7148]
[1744525744701,94.96502809,129.67,129.62,7.7148]
[1744525745498,13.96502809,129.66,129.62,7.7148]
[1744525745677,13.96502809,129.65,129.62,7.7148]
[1744525746503,13.96502809,129.66,129.62,7.7148]
[1744525747200,13.96502809,129.65,129.62,7.7148]
[1744525747906,13.96502809,129.64,129.62,7.7148]
[1744525748205,13.96502809,129.64,129.6,7.716]
[1744525748726,13.96502809,129.65,129.6,40.97112809]
[1744525749009,13.96502809,129.66,129.61,13.96502809]
[1744525750211,13.96502809,129.66,129.62,7.7148]
[1744525751795,13.96502809,129.64,129.61,7.7153]
[1744525751991,13.96502809,129.63,129.59,7.5]
[1744525752516,13.96502809,129.64,129.59,21.46502809]
[1744525753020,13.96502809,129.64,129.59,7.5]
[1744525753192,13.96502809,129.63,129.59,7.5]
[1744525754713,13.96502809,129.63,129.57,1.6479]
[1744525754714,13.96502809,129.61,129.57,1.6479]
[1744525755206,13.96502809,129.6,129.57,7.7175]
[1744525755589,13.96502809,129.61,129.57,7.7175]
[1744525755790,13.96502809,129.6,129.56,7.7811]
[1744525755982,13.96502809,129.59,129.56,7.7811]
[1744525756187,13.96502809,129.57,129.56,0.063]
[1744525757907,13.96502809,129.57,129.55,0.063]
[1744525757908,19.07613357,129.56,129.55,0.063]
[1744525758108,33.04116166,129.56,129.55,0.063]
[1744525758716,40.75956166,129.56,129.55,0.063]
[1744525760928,13.96502809,129.56,129.55,0.063]
[1744525761129,21.68342809,129.56,129.55,0.063]
[1744525761314,40.75956166,129.56,129.55,0.063]
[1744525768920,63.91956166,129.56,129.55,0.063]
[1744525769125,0.28432314,129.52,129.5,0.063]
[1744525769328,94.96502809,129.51,129.5,0.063]
[1744525770330,114.04116166,129.51,129.5,0.063]
[1744525771128,121.76256166,129.51,129.5,0.063]
[1744525774721,94.96502809,129.51,129.5,0.063]
[1744525775611,81.0,129.51,129.5,0.063]
[1744525775816,94.96502809,129.51,129.5,0.063]
[1744525778753,81.0,129.51,129.5,0.063]
[1744525779043,94.96502809,129.51,129.5,0.063]
[1744525779451,89.95435592,129.51,129.5,0.063]
[1744525780937,81.0,129.51,129.5,0.063]
[1744525781235,89.95435592,129.51,129.5,0.063]
[1744525782023,45.07613357,129.54,129.5,0.063]
[1744525782024,8.95435592,129.54,129.5,0.063]
[1744525782438,8.95435592,129.55,129.5,9.01735592]
[1744525783025,8.95435592,129.55,129.51,7.7214]
[1744525783336,13.9837043,129.55,129.51,7.7214]
[1744525791841,81.0,129.56,129.52,13.9837043]
[1744525792047,81.0,129.56,129.53,13.9837043]
[1744525792248,13.9837043,129.58,129.53,13.9837043]
[1744525792430,13.9837043,129.57,129.53,7.7202]
[1744525792943,13.9837043,129.58,129.53,21.7039043]
[1744525793147,13.9837043,129.59,129.53,21.7039043]
[1744525793637,13.9837043,129.58,129.53,21.7039043]
[1744525793844,107.50801043,129.6,129.53,21.7039043]
[1744525794047,13.9837043,129.58,129.53,21.7039043]
[1744525794746,13.9837043,129.57,129.53,7.7202]
[1744525797846,13.9837043,129.56,129.53,7.7202]
[1744525798031,13.9837043,129.55,129.51,27.0249]
[1744525798756,13.9837043,129.55,129.51,7.7214]
[1744525799559,13.9837043,129.53,129.5,9.3089]
[1744525799867,13.9837043,129.52,129.5,0.063]
[1744525800741,13.9837043,129.51,129.5,0.063]
[1744525801972,81.0,129.56,129.5,0.063]
[1744525802259,94.9837043,129.57,129.52,13.9837043]
[1744525802757,81.0,129.57,129.53,15.6158043]
[1744525802948,13.9837043,129.58,129.53,15.6158043]
[1744525804056,13.9837043,129.57,129.54,7.7196]
[1744525804248,13.9837043,129.58,129.54,7.7196]
[1744525805945,13.9837043,129.59,129.54,21.7033043]
[1744525806147,13.9837043,129.6,129.55,13.9837043]
[1744525806847,13.9837043,129.59,129.54,47.7033043]
[1744525808956,89.17218471,129.61,129.55,13.9837043]
[1744525809267,8.94241796,129.6,129.55,8.94241796]
[1744525810972,8.94241796,129.6,129.55,16.66091796]
[1744525811672,16.65851796,129.6,129.55,16.66091796]
[1744525811877,8.94241796,129.59,129.55,7.7185]
[1744525813177,16.65911796,129.59,129.54,42.66181796]
[1744525813478,19.07613357,129.54,129.5,0.063]
[1744525813655,8.94241796,129.51,129.5,0.063]
[1744525814161,8.94241796,129.52,129.5,0.063]
[1744525814496,8.94241796,129.51,129.5,0.063]
[1744525815478,81.0,129.54,129.5,35.00541796]
[1744525815651,8.94241796,129.57,129.52,8.94241796]
[1744525816168,7.19216157,129.61,129.55,8.94241796]
[1744525816478,8.94241796,129.6,129.55,8.94241796]
[1744525817278,21.68961466,129.6,129.55,21.69191466]
[1744525818181,0.03,129.61,129.57,13.97321466]
[1744525818483,0.03,129.61,129.58,13.97321466]
[1744525818670,0.03,129.61,129.57,15.58641466]
[1744525818980,0.03,129.61,129.57,1.6132]
[1744525819165,13.97321466,129.6,129.57,1.6132]
[1744525820084,0.03,129.61,129.57,9.331]
[1744525820288,0.03,129.61,129.59,13.97321466]
[1744525820662,0.03,129.61,129.57,23.30421466]
[1744525821890,14.00321466,129.61,129.57,9.3307]
[1744525822777,0.03,129.61,129.58,13.97321466]
[1744525823572,0.03,129.61,129.58,21.69031466]
[1744525824272,0.03,129.61,129.6,13.97321466]
[1744525824490,0.03,129.61,129.59,13.97321466]
[1744525825171,0.03,129.61,129.57,9.3308]
[1744525825370,0.03,129.61,129.57,23.30401466]
[1744525825588,0.03,129.61,129.58,13.97321466]
[1744525826395,0.03,129.61,129.6,39.97321466]
[1744525826687,0.03,129.61,129.6,80.04256289]
[1744525827063,0.03,129.61,129.6,86.47866289]
[1744525827682,0.03,129.61,129.6,94.19466289]
[1744525828177,0.03,129.62,129.61,19.07613357]
[1744525828368,0.03,129.62,129.61,33.04934823]
[1744525830178,0.03,129.62,129.61,40.76474823]
[1744525830384,0.03,129.66,129.64,26.0]
[1744525830877,0.03,129.66,129.64,39.97321466]
[1744525831581,0.03,129.66,129.64,47.68671466]
[1744525831759,0.03,129.66,129.65,13.97321466]
[1744525831961,0.03,129.66,129.64,47.68671466]
[1744525832681,0.03,129.66,129.64,33.7135]
[1744525833184,0.03,129.66,129.64,47.68671466]
[1744525834196,14.00321466,129.66,129.61,13.97321466]
[1744525834788,14.00321466,129.66,129.61,21.68861466]
[1744525835274,21.71571466,129.66,129.61,21.68861466]
[1744525836079,0.03,129.66,129.65,13.97321466]
[1744525836482,0.03,129.66,129.64,13.97321466]
[1744525836683,0.03,129.66,129.65,13.97321466]
[1744525836886,0.03,129.66,129.64,21.68651466]
[1744525837186,0.03,129.66,129.65,13.97321466]
[1744525837685,0.03,129.66,129.65,47.79822509]
[1744525837867,0.03,129.66,129.65,48.08254823]
[1744525838978,13.62321466,129.73,129.66,7.7124]
[1744525839180,21.71111466,129.74,129.68,13.97321466]
[1744525840091,21.71111466,129.74,129.68,21.68411466]
[1744525840400,21.71111466,129.74,129.69,13.97321466]
[1744525840975,14.00321466,129.74,129.69,13.97321466]
[1744525841172,0.03,129.74,129.7,13.97321466]
[1744525841372,0.03,129.74,129.71,13.97321466]
[1744525842179,0.03,129.74,129.72,7.7089]
[1744525842579,0.03,129.74,129.71,21.68251466]
[1744525843990,0.03,129.74,129.72,13.97321466]
[1744525844192,0.03,129.74,129.71,39.97321466]
[1744525845293,0.03,129.74,129.73,13.97321466]
[1744525845687,0.03,129.74,129.72,13.97321466]
[1744525845895,0.03,129.74,129.71,47.68251466]
[1744525846084,0.03,129.74,129.72,13.97321466]
[1744525846496,0.03,129.74,129.73,13.97321466]
[1744525847500,0.03,129.74,129.73,21.68151466]
[1744525850183,0.03,129.74,129.73,13.97321466]
[1744525850977,0.03,129.74,129.71,21.68241466]
[1744525851605,0.03,129.74,129.72,13.97321466]
[1744525851896,0.03,129.74,129.73,13.97321466]
[1744525853997,0.03,129.74,129.73,21.68151466]
[1744525854280,0.03,129.74,129.73,7.7083]
[1744525854483,0.03,129.74,129.73,21.68151466]
[1744525859993,0.03,129.74,129.72,7.7087]
[1744525860192,0.03,129.74,129.71,7.7093]
[1744525860593,0.03,129.74,129.71,21.68251466]
[1744525861199,0.03,129.74,129.72,13.97321466]
[1744525862011,0.03,129.74,129.68,7.1]
[1744525862210,0.03,129.74,129.71,13.97321466]
[1744525863006,0.03,129.74,129.7,13.97321466]
[1744525863211,0.03,129.74,129.7,21.68311466]
[1744525863609,13.97321466,129.73,129.68,21.07321466]
[1744525863809,13.97321466,129.72,129.68,7.1]
[1744525864289,6.4783,129.74,129.67,21.74761466]
[1744525864290,13.97321466,129.71,129.67,0.063]
[1744525864690,13.97321466,129.72,129.67,0.063]
[1744525865712,21.68231466,129.72,129.67,0.063]
[1744525866217,21.68231466,129.72,129.67,14.03621466]
[1744525866817,21.68231466,129.72,129.67,0.063]
[1744525867111,13.97321466,129.7,129.67,0.063]
[1744525867516,13.97321466,129.68,129.67,0.063]
[1744525868608,19.97491466,129.68,129.67,0.063]
[1744525869008,27.68611466,129.68,129.67,0.063]
[1744525869492,48.35984823,129.68,129.67,0.063]
[1744525869691,62.33306289,129.68,129.67,0.063]
[1744525869895,48.35984823,129.68,129.67,0.063]
[1744525873596,62.33306289,129.68,129.67,0.063]
[1744525874319,48.35984823,129.68,129.67,0.063]
[1744525875020,62.33306289,129.68,129.67,0.063]
[1744525876310,48.35984823,129.68,129.67,0.063]
[1744525876510,34.38663357,129.68,129.67,0.063]
[1744525876694,48.35984823,129.68,129.67,0.063]
[1744525878816,62.33306289,129.68,129.67,0.063]
[1744525879329,48.35984823,129.68,129.67,0.063]
[1744525880723,71.51984823,129.68,129.67,0.063]
[1744525884219,7.7112,129.68,129.67,0.063]
[1744525884534,21.68411466,129.69,129.67,0.063]
[1744525886133,33.04934823,129.68,129.67,0.063]
[1744525886512,13.97321466,129.68,129.67,0.063]
[1744525886713,7.7109,129.69,129.67,0.063]
[1744525886714,21.68411466,129.69,129.67,0.063]
[1744525887132,13.97321466,129.68,129.67,0.063]
[1744525887541,21.68441466,129.68,129.67,0.063]
[1744525887712,40.76054823,129.68,129.67,0.063]
[1744525891638,44.79181043,129.64,129.61,0.063]
[1744525891820,33.04934823,129.62,129.61,0.063]
[1744525892037,40.76414823,129.62,129.61,0.063]
[1744525892940,26.0,129.64,129.61,0.063]
[1744525893243,81.0,129.63,129.61,0.063]
[1744525893745,81.0,129.63,129.61,14.03621466]
[1744525894050,81.0,129.63,129.61,0.063]
[1744525895020,13.97321466,129.62,129.61,0.063]
[1744525896350,21.68801466,129.62,129.61,0.063]
[1744525897660,7.7148,129.62,129.61,0.063]
[1744525897844,21.68801466,129.62,129.61,0.063]
[1744525903122,40.76414823,129.62,129.61,0.063]
[1744525903638,33.04934823,129.61,129.6,0.063]
[1744525904845,19.07613357,129.61,129.6,0.063]
[1744525905050,40.76474823,129.61,129.6,0.063]
[1744525906858,44.79181043,129.57,129.56,0.063]
[1744525907035,58.76502509,129.57,129.56,0.063]
[1744525907950,66.48282509,129.57,129.56,0.063]
[1744525912548,147.48282509,129.57,129.56,0.063]
[1744525913056,128.69101466,129.57,129.56,0.063]
[1744525913757,0.28432314,129.55,129.54,0.063]
[1744525914072,14.2575378,129.55,129.5,0.063]
[1744525914271,13.97321466,129.52,129.5,0.063]
[1744525919253,21.69401466,129.52,129.5,0.063]
[1744525919966,13.97321466,129.51,129.5,0.063]
[1744525920563,21.69401466,129.52,129.5,0.063]
[1744525921368,13.97321466,129.52,129.5,0.063]
[1744525921574,13.97321466,129.53,129.5,0.063]
[1744525921967,21.69351466,129.53,129.5,0.063]
[1744525922166,7.7184,129.56,129.51,13.97321466]
[1744525922367,7.7184,129.56,129.52,13.97321466]
[1744525922870,7.7184,129.56,129.5,0.063]
[1744525922871,13.97321466,129.53,129.5,0.063]
[1744525923059,13.97321466,129.52,129.5,0.063]
[1744525923576,13.97321466,129.53,129.5,0.063]
[1744525924179,26.0,129.49,129.47,0.063]
[1744525924384,33.04934823,129.48,129.47,0.063]
[1744525924678,13.97321466,129.48,129.47,0.063]
[1744525925266,22.39659467,129.48,129.47,0.063]
[1744525925885,81.0,129.49,129.47,0.063]
[1744525925886,103.39659467,129.49,129.47,0.063]
[1744525926254,22.39659467,129.48,129.47,0.063]
[1744525926979,22.39659467,129.51,129.47,0.063]
[1744525927580,22.39659467,129.5,129.47,0.063]
[1744525927779,18.79181043,129.53,129.47,0.063]
[1744525927780,22.39659467,129.51,129.47,0.063]
[1744525928003,30.11829467,129.51,129.47,0.063]
[1744525928358,22.39659467,129.5,129.47,0.063]
[1744525928558,30.11829467,129.51,129.47,0.063]
[1744525930479,22.39659467,129.51,129.47,0.063]
[1744525930953,30.11749467,129.52,129.47,22.45959467]
[1744525931580,30.11749467,129.52,129.47,30.18299467]
[1744525933060,30.11749467,129.52,129.47,38.16999467]
[1744525933263,30.11679467,129.53,129.47,38.16999467]
[1744525933777,30.11679467,129.53,129.47,15.7734]
[1744525933986,88.7198,129.54,129.5,22.39659467]
[1744525934597,111.11639467,129.54,129.49,22.39659467]
[1744525935082,88.7198,129.54,129.5,22.39659467]
[1744525935580,30.11579467,129.55,129.5,30.11849467]
[1744525935968,22.39659467,129.53,129.49,7.7224]
[1744525936172,22.39659467,129.52,129.48,7.723]
[1744525936682,22.39659467,129.53,129.48,30.11959467]
[1744525939489,30.11649467,129.54,129.49,22.39659467]
[1744525939890,22.39659467,129.54,129.5,22.39659467]
[1744525940185,30.11629467,129.54,129.5,22.39659467]
[1744525940392,30.11629467,129.54,129.49,30.11879467]
[1744525940894,22.39659467,129.54,129.49,30.11879467]
[1744525941093,21.89659467,129.54,129.49,30.11879467]
[1744525941497,21.89659467,129.54,129.5,22.39659467]
[1744525941678,22.39659467,129.55,129.5,22.39659467]
[1744525941994,22.39659467,129.55,129.51,7.7214]
[1744525942386,22.39659467,129.57,129.52,22.39659467]
[1744525942578,103.39659467,129.58,129.53,30.34349467]
[1744525943289,103.39659467,129.58,129.54,22.39659467]
[1744525943688,111.11389467,129.58,129.53,30.34349467]
[1744525944199,22.39659467,129.57,129.53,15.6669]
[1744525945197,22.39659467,129.55,129.53,1.6277]
[1744525945400,13.98301326,129.55,129.53,1.6277]
[1744525945993,13.98301326,129.56,129.53,1.6277]
[1744525947105,21.70101326,129.57,129.53,1.6277]
[1744525947606,13.98301326,129.57,129.53,9.3477]
[1744525947807,19.3214,129.6,129.54,13.98301326]
[1744525947808,13.98301326,129.59,129.54,13.98301326]
[1744525948012,21.69971326,129.59,129.54,13.98301326]
[1744525948494,21.69971326,129.59,129.54,21.70211326]
[1744525948697,14.01301326,129.6,129.55,13.98301326]
[1744525948903,0.03,129.6,129.56,13.98301326]
[1744525950300,0.03,129.6,129.58,21.69991326]
[1744525950485,0.03,129.6,129.58,9.3592]
[1744525950805,0.03,129.6,129.55,8.2913]
[1744525950983,13.98301326,129.59,129.55,22.27431326]
[1744525951185,14.01301326,129.6,129.55,22.27431326]
[1744525951480,13.98301326,129.59,129.55,16.0101]
[1744525951685,14.01301326,129.6,129.55,29.99311326]
[1744525952802,0.03,129.6,129.55,29.99311326]
[1744525953005,14.01301326,129.6,129.55,29.99311326]
[1744525954618,21.72901326,129.6,129.55,29.99311326]
[1744525954996,14.01301326,129.6,129.55,29.99311326]
[1744525958411,14.01301326,129.6,129.55,16.0101]
[1744525959111,0.03,129.6,129.55,29.99311326]
[1744525959414,0.03,129.6,129.58,13.98301326]
[1744525959792,0.03,129.6,129.59,13.98301326]
[1744525959992,0.03,129.6,129.59,33.05914683]
[1744525960517,0.03,129.6,129.59,42.30914683]
[1744525960822,0.03,129.6,129.59,55.62104683]
[1744525961413,0.03,129.61,129.6,19.07613357]
[1744525961612,0.03,129.61,129.6,33.05914683]
[1744525962503,0.03,129.61,129.6,40.77514683]
[1744525963416,0.03,129.61,129.6,54.75816009]
[1744525963713,0.03,129.66,129.63,26.0]
[1744525963921,0.03,129.66,129.65,13.98301326]
[1744525964300,0.03,129.66,129.65,15.54811326]
[1744525964900,0.03,129.66,129.65,42.05292369]
[1744525965119,0.03,129.66,129.65,48.76564683]
[1744525966027,0.03,129.66,129.65,29.68951326]
[1744525966317,0.03,129.66,129.65,48.76564683]
[1744525967999,0.03,129.67,129.66,19.07613357]
[1744525968202,0.03,129.67,129.66,33.05914683]
[1744525968593,0.03,129.67,129.66,19.07613357]
[1744525968813,0.03,129.67,129.66,33.05914683]
[1744525970106,0.03,129.67,129.66,40.77154683]
[1744525971818,0.03,129.67,129.66,26.78853357]
[1744525972132,0.03,129.67,129.66,7.7124]
[1744525972324,0.03,129.67,129.66,21.69541326]
[1744525972720,0.03,129.67,129.66,40.77154683]
[1744525973303,0.0001,129.67,129.66,40.77154683]
[1744525979721,0.0001,129.67,129.66,21.69541326]
[1744525980527,13.98311326,129.67,129.62,15.0347]
[1744525980709,13.98301326,129.65,129.62,7.32]
[1744525981108,13.98301326,129.66,129.62,7.32]
[1744525981834,20.59001326,129.67,129.62,29.01781326]
[1744525982020,28.30191326,129.67,129.62,21.30301326]
[1744525982225,13.98301326,129.66,129.62,7.32]
[1744525982432,13.98301326,129.66,129.62,15.0348]
[1744525982832,28.30191326,129.67,129.62,29.01781326]
[1744525983521,20.59001326,129.67,129.62,29.01781326]
[1744525983730,28.30191326,129.67,129.62,29.01781326]
[1744525984641,20.59001326,129.67,129.62,29.01781326]
[1744525984824,0.0001,129.67,129.63,13.98301326]
[1744525985539,0.0001,129.67,129.63,21.69671326]
[1744525985926,13.98301326,129.66,129.62,7.32]
[1744525986444,0.0001,129.67,129.62,15.0347]
[1744525986743,13.98301326,129.66,129.62,15.0347]
[1744525986947,0.0001,129.67,129.62,29.01771326]
[1744525986948,13.98311326,129.67,129.62,29.01771326]
[1744525987534,13.98301326,129.66,129.62,15.0347]
[1744525991639,13.98301326,129.65,129.62,7.32]
[1744525991825,21.69551326,129.66,129.61,21.69841326]
[1744525992440,13.98301326,129.64,129.61,26.0]
[1744525992616,0.0001,129.67,129.66,44.79181043]
[1744525992823,0.03,129.72,129.66,66.37914683]
[1744525993021,0.03,129.72,129.71,13.98301326]
[1744525993734,0.03,129.72,129.71,21.69251326]
[1744525995261,0.03,129.72,129.71,40.48432369]
[1744525995555,0.03,129.72,129.71,48.08864683]
[1744525995926,0.03,129.72,129.71,29.01251326]
[1744525997842,0.03,129.73,129.71,29.01251326]
[1744525998027,0.03,129.73,129.72,13.98301326]
[1744525998437,0.03,129.73,129.71,15.0295]
[1744525998935,0.03,129.73,129.72,13.98301326]
[1744525999325,0.03,129.73,129.71,15.0295]
[1744525999729,0.03,129.73,129.72,21.69191326]
[1744526001328,0.0001,129.73,129.72,40.76804683]
[1744526001529,0.0001,129.73,129.72,26.78503357]
[1744526002030,0.0001,129.73,129.72,40.76804683]
[1744526004051,0.0001,129.73,129.72,21.69191326]
[1744526004932,0.0001,129.73,129.71,7.32]
[1744526004933,0.0001,129.73,129.71,15.0293]
[1744526005239,0.0001,129.73,129.71,7.7093]
[1744526005832,13.98311326,129.73,129.68,13.98301326]
[1744526006150,0.0001,129.73,129.69,13.98301326]
[1744526006849,0.0001,129.73,129.68,21.69421326]
[1744526007041,0.0001,129.73,129.69,13.98301326]
[1744526007244,0.0001,129.73,129.71,7.7095]
[1744526009043,0.0001,129.73,129.69,13.98301326]
[1744526009542,0.0001,129.73,129.7,13.98301326]
[1744526009739,0.0001,129.73,129.69,13.98301326]
[1744526010948,0.0001,129.73,129.68,21.69421326]
[1744526011459,13.98311326,129.73,129.68,21.69421326]
[1744526012759,13.98311326,129.73,129.68,7.7112]
[1744526012940,13.98301326,129.72,129.68,7.7112]
[1744526013560,13.98301326,129.71,129.67,15.2916]
[1744526014863,0.0001,129.73,129.67,29.27461326]
[1744526015046,0.0001,129.73,129.7,13.98301326]
[1744526015442,0.0001,129.73,129.67,34.5713]
[1744526015764,0.0001,129.73,129.7,13.98301326]
[1744526016966,0.0001,129.73,129.7,21.69271326]
[1744526018563,0.0001,129.73,129.71,13.98301326]
[1744526019164,0.0001,129.73,129.71,7.7093]
[1744526019469,0.0001,129.73,129.71,13.98301326]
[1744526021371,0.0001,129.73,129.71,21.69201326]
[1744526022467,0.0001,129.73,129.72,13.98301326]
[1744526023461,0.0001,129.73,129.72,21.69191326]
[1744526024683,0.0001,129.73,129.72,7.7089]
[1744526027465,0.0001,129.73,129.71,7.7093]
[1744526030168,0.0001,129.73,129.7,13.98301326]
[1744526030377,13.98301326,129.71,129.64,15.2936]
[1744526030571,13.98301326,129.71,129.65,13.98301326]
[1744526030959,6.4815,129.72,129.68,13.98301326]
[1744526031163,13.98301326,129.71,129.67,26.0]
[1744526032276,13.98301326,129.71,129.67,33.7117]
[1744526034476,21.69251326,129.71,129.67,26.0]
[1744526035079,13.98301326,129.71,129.67,33.7118]
[1744526035773,28.17361326,129.72,129.67,33.7118]
[1744526035957,13.98301326,129.71,129.67,33.7118]
[1744526038579,28.17361326,129.72,129.67,47.69481326]
[1744526039267,23.1166933,129.72,129.67,42.6378933]
[1744526040053,8.9260933,129.71,129.67,26.0]
[1744526040776,8.9260933,129.71,129.67,33.7117]
[1744526040976,23.1166933,129.72,129.67,42.6377933]
[1744526042068,0.0001,129.73,129.69,8.9260933]
[1744526043860,16.6344933,129.73,129.68,8.9260933]
[1744526044293,8.9260933,129.72,129.67,34.9260933]
[1744526044470,8.9260933,129.7,129.65,8.9260933]
[1744526044868,8.9260933,129.71,129.64,7.58]
[1744526045072,8.9260933,129.71,129.66,8.9260933]
[1744526045481,16.6351933,129.72,129.67,8.9260933]
[1744526048294,7.7091,129.72,129.67,16.6377933]
[1744526048792,16.6351933,129.72,129.67,16.6377933]
[1744526050693,16.6351933,129.72,129.66,8.9260933]
[1744526051887,8.9260933,129.71,129.66,16.6380933]
[1744526053395,0.0001,129.73,129.7,8.9260933]
[1744526053596,0.0001,129.73,129.69,34.9260933]
[1744526054770,0.0001,129.73,129.72,8.9260933]
[1744526055585,0.0001,129.73,129.72,16.6349933]